Workbook

Sheet Brinell
B2: Periodische Prüfung zur Prüfmittelüberwachung nach Brinell
W3: Beanspruchungsgrad = 30
B4: Prüfmaschine | W4: Härtebereich | X4: Härte | Y4: r rel [%] | Z4: Erel [%]
B5: MPA-Nummer der Härtevergleichsplatte | W5: 1 | X5: HC< 250 HBW | Y5: 3.0 | Z5: ± 3,0
B6: Zertifizierte Härte der Härtevergleichsplatte | I6: 250 | J6: HBW | K6: 10.0 | L6: / | M6: 3000.0 | W6: 2 | X6: 250 HBW ≤ HC ≤450 HBW | Y6: 2.5 | Z6: ± 2,5 | AB6: Prüfverfahren | AC6: HBW | AE6: 187.5
B7: Mittlere Eindruckdiagonale der Härtevergleichsplatte | I7: =IF(ISBLANK(K6),"",SQRT((K6^2-(K6-((2*M6)/(I6*3.14*K6)))^2))) -> 3.8344 | J7: [mm] | W7: 3 | X7: HC > 450 HBW | Y7: 2.0 | Z7: ± 2,0 | AB7: Sollwwert Härte HBW / Diagonale | AC7: HBW / mm | AE7: =IF(ISBLANK(AD6),"",SQRT((AD6^2-(AD6-((2*AE6)/(AD7*3.14*AD6)))^2))) -> 
B8: zulässige Wiederholpräzision in % | I8: =IF(I12<>30,Y11,IF(I6<250,Y5,IF(I6<=450,Y6,Y7))) -> 2.5 | J8: % | V8: 0,102 x FID2 = 10 | W8: 0,102 x FID2 = 5 | X8: 0,102 x FID2 ≤ 2,5 | AB8: Messwert H 1 / Diagonale d1 | AC8: HBW / mm | AD8: =IF(ISBLANK(AD6),"",(2*AE6)/(3.14*AD6*(AD6-SQRT(AD6^2-AVERAGE(AE8)^2)))) ->  | AE8: =IF(ISBLANK(AD6),"",SQRT((AD6^2-(AD6-((2*AE6)/(AD8*3.14*AD6)))^2))) -> 
B9: zulässige Anzeigeabweichung in % | I9: =IF(I12<>30,Y11,IF(I6<250,Y5,IF(I6<=450,Y6,Y7))) -> 2.5 | J9: % | U9: Härtebereich | V9: Härte | W9: Härte | X9: Härte | Y9: r rel [%] | Z9: Erel [%] | AB9: Messwert H 2 / Diagonale d2 | AC9: HBW / mm | AD9: =IF(ISBLANK(AD6),"",(2*AE6)/(3.14*AD6*(AD6-SQRT(AD6^2-AVERAGE(AE9)^2)))) ->  | AE9: =IF(ISBLANK(AD6),"",SQRT((AD6^2-(AD6-((2*AE6)/(AD9*3.14*AD6)))^2))) -> 
B10: Obere Toleranzgrenze | I10: =I6*(100+I8)/100 -> 256.3 | J10: [HBW] | U10: 1 | V10: HC < 100 HBW | W10: HC < 70 HBW | X10: HC < 70 | Y10: 3.0 | Z10: ± 3,0 | AB10: Messwert H 3 / Diagonale d3 | AC10: HBW / mm | AD10: =IF(ISBLANK(AD6),"",(2*AE6)/(3.14*AD6*(AD6-SQRT(AD6^2-AVERAGE(AE10)^2)))) ->  | AE10: =IF(ISBLANK(AD6),"",SQRT((AD6^2-(AD6-((2*AE6)/(AD10*3.14*AD6)))^2))) -> 
B11: Untere Toleranzgrenze | I11: =I6*(100-I8)/100 -> 243.8 | J11: [HBW] | U11: 2 | V11: 100 HBW ≤ HC ≤ 200 HBW | W11: 70 HBW ≤ HC ≤ 100 HBW | X11: N/A | Y11: 3.0 | Z11: ± 3,0 | AB11: Messwert H 4 / Diagonale d4 | AC11: HBW / mm | AD11: =IF(ISBLANK(AD6),"",(2*AE6)/(3.14*AD6*(AD6-SQRT(AD6^2-AVERAGE(AE11)^2)))) ->  | AE11: =IF(ISBLANK(AD6),"",SQRT((AD6^2-(AD6-((2*AE6)/(AD11*3.14*AD6)))^2))) -> 
B12: Beanspruchungsgrad | I12: =M6/K6^2 -> 30 | O12: Tel.: +49 (0)2773 9169261 www.siantec.de | U12: 3 | V12: HC >200 HBW | W12: HC > 100 HBW | X12: N/A | Y12: 3.0 | Z12: ± 3,0 | AB12: Messwert H 5 / Diagonale d5 | AC12: HBW / mm | AD12: =IF(ISBLANK(AD6),"",(2*AE6)/(3.14*AD6*(AD6-SQRT(AD6^2-AVERAGE(AE12)^2)))) ->  | AE12: =IF(ISBLANK(AD6),"",SQRT((AD6^2-(AD6-((2*AE6)/(AD12*3.14*AD6)))^2))) -> 
AB13: Mittelw. H 1-5 / Diagonale d 1-5 | AC13: HBW / mm | AD13: =IF(ISBLANK(AD6),"",AVERAGE(AD8:AD12)) ->  | AE13: =IF(ISBLANK(AD6),"",AVERAGE(AE8:AE12)) -> 
B14: Härtewerte in [HB]
C15: =(C16-C19)/3*4+C19 -> 258
C16: =I10 -> 256
C17: =(C16-C19)/3*2+C19 -> 254
C18: =(C16-C19)/3*1+C19 -> 252
C19: =I6 -> 250
C20: =(C22-C19)/3*1+C19 -> 248
C21: =(C22-C19)/3*2+C19 -> 246
C22: =I11 -> 244
C23: =(C22-C19)/3*4+C19 -> 242
B26: Lfd. Nr. | C26: Prüfer | D26: Datum | E26: KW | F26: 1. Mess. | G26: 2. Mess. | H26: 3. Mess. | I26: 4. Mess. | J26: 5. Mess. | K26: Mittel-wert | M26: d | N26: b | O26: r | P26: Bemerkungen | U26: Messwert Diagonale d1 in mm | V26: Messwert Diagonale d2 in mm | W26: Messwert Diagonale d3 in mm | X26: Messwert Diagonale d4 in mm | Y26: Messwert Diagonale d5 in mm | AB26: rel. Anzeigeabweichung Härte | AC26: % | AD26: =IF(ISBLANK(AD6),"",((AD13-AD7)/AD7)*100) -> 
B27: 1 | C27: Herzog | D27: 2021-02-19 | E27: =IF(ISBLANK(D27),"",TRUNC((D27-WEEKDAY(D27,2)-DATE(YEAR(D27+4-WEEKDAY(D27,2)),1,-10))/7)) -> 7 | F27: 251 | G27: 252 | H27: 255 | I27: 251 | J27: 253 | K27: =IF(ISBLANK(F27),"",AVERAGE(F27:J27)) -> 252 | M27: =IF(ISBLANK(F27),"",AVERAGE(U27:Y27)) -> 3.8169 | N27: =IF(ISBLANK(F27),"",((K27-$I$6)/$I$6)*100) -> 1.0 | O27: =IF(ISBLANK(G27),"",(MAX(U27:Y27)-MIN(U27:Y27))/M27*100) -> 0.8 | P27: Beispiel | R27: =(I9+N27)/I9*100-100 -> 38.4 | S27: =R27*0.6 -> 23.04 | U27: =IF(ISBLANK(F27),"",IF($F27<>0,SQRT(($K$6^2-($K$6-((2*$M$6)/(F27*3.14*$K$6)))^2)))) -> 3.8270 | V27: =IF(ISBLANK(G27),"",IF($F27<>0,SQRT(($K$6^2-($K$6-((2*$M$6)/(G27*3.14*$K$6)))^2)))) -> 3.8197 | W27: =IF(ISBLANK(H27),"",IF($F27<>0,SQRT(($K$6^2-($K$6-((2*$M$6)/(H27*3.14*$K$6)))^2)))) -> 3.7981 | X27: =IF(ISBLANK(I27),"",IF($F27<>0,SQRT(($K$6^2-($K$6-((2*$M$6)/(I27*3.14*$K$6)))^2)))) -> 3.8270 | Y27: =IF(ISBLANK(J27),"",IF($F27<>0,SQRT(($K$6^2-($K$6-((2*$M$6)/(J27*3.14*$K$6)))^2)))) -> 3.8125 | AB27: rel. Wiederholpräz. von Mittelw. d | AC27: % | AE27: =IF(ISBLANK(AD6),"",(MAX(AE8:AE12)-MIN(AE8:AE12))/AE13*100) -> 
B28: 2 | E28: =IF(ISBLANK(D28),"",TRUNC((D28-WEEKDAY(D28,2)-DATE(YEAR(D28+4-WEEKDAY(D28,2)),1,-10))/7)) ->  | R28: =(I9+N28)/I9*100-100 ->  | AB28: U Kal. der CRM aus dem Prüfzeugnis k=2 | AC28: HBW | AD28: =AD7*0.015 -> 0.00
B29: 3 | R29: =(I9+N29)/I9*100-100 ->  | AB29: Härteänderung der HBWP seit der letzten Kalibrierung durch Drift | AC29: HBW | AD29: 0.00
B30: 4 | R30: =(I9+N30)/I9*100-100 ->  | AB30: u der Härteprüfm. auf der CRM (HBWP) | AC30: HBW | AD30: =(1.14*(STDEV(AD8:AD12)))/SQRT(5) -> 
B31: 5 | R31: =(I9+N31)/I9*100-100 ->  | AB31: u Auflösung Härteprüfm. | AC31: HBW | AD31: =((2*AE6)/(3.14*AD6*(AD6-SQRT(AD6^2-AVERAGE(AE13)^2)))-(2*AE6)/(3.14*AD6*(AD6-SQRT(AD6^2-AVERAGE(AE13+AE31)^2))))/(2*SQRT(3)) ->  | AE31: =0.005*AE7 -> 
B32: 6 | R32: =(I9+N32)/I9*100-100 ->  | AB32: Messunsicherheit U Bei k=2 | AC32: HBW | AD32: =IF(ISBLANK(AD6),"",SQRT((0.5*AD28^2)+(AD29^2)+(AD30^2)+(AD31^2))*2) -> 
B33: 7 | R33: =(I9+N33)/I9*100-100 -> 
B34: 8 | R34: =(I9+N34)/I9*100-100 -> 
B35: 9 | R35: =(I9+N35)/I9*100-100 -> 
B36: 10 | R36: =(I9+N36)/I9*100-100 -> 
B37: 11 | R37: =(I9+N37)/I9*100-100 -> 
B38: 12 | R38: =(I9+N38)/I9*100-100 -> 
B39: 13 | R39: =(I9+N39)/I9*100-100 -> 
B40: 14 | R40: =(I9+N40)/I9*100-100 -> 
B41: 15 | R41: =(I9+N41)/I9*100-100 -> 
B42: 16 | R42: =(I9+N42)/I9*100-100 -> 
B43: 17 | R43: =(I9+N43)/I9*100-100 -> 
B44: 18 | R44: =(I9+N44)/I9*100-100 -> 
B45: 19 | R45: =(I9+N45)/I9*100-100 -> 
B46: 20 | R46: =(I9+N46)/I9*100-100 -> 
B47: 21 | R47: =(I9+N47)/I9*100-100 -> 
B48: 22 | R48: =(I9+N48)/I9*100-100 -> 
B49: 23 | R49: =(I9+N49)/I9*100-100 -> 
B50: 24 | R50: =(I9+N50)/I9*100-100 -> 
B51: 25 | R51: =(I9+N51)/I9*100-100 -> 
B52: 26 | R52: =(I9+N52)/I9*100-100 -> 
B53: 27 | R53: =(I9+N53)/I9*100-100 -> 
B54: 28 | R54: =(I9+N54)/I9*100-100 -> 
B55: 29 | R55: =(I9+N55)/I9*100-100 -> 
B56: 30 | R56: =(I9+N56)/I9*100-100 -> 
B57: 31 | R57: =(I9+N57)/I9*100-100 -> 
B59: Erläuterungen: | U59: =IF(ISBLANK(F59),"",IF($F59<>0,SQRT(($K$6^2-($K$6-((2*$M$6)/(F59*3.14*$K$6)))^2)))) ->  | V59: =IF(ISBLANK(G59),"",IF($F59<>0,SQRT(($K$6^2-($K$6-((2*$M$6)/(G59*3.14*$K$6)))^2)))) ->  | W59: =IF(ISBLANK(H59),"",IF($F59<>0,SQRT(($K$6^2-($K$6-((2*$M$6)/(H59*3.14*$K$6)))^2)))) ->  | X59: =IF(ISBLANK(I59),"",IF($F59<>0,SQRT(($K$6^2-($K$6-((2*$M$6)/(I59*3.14*$K$6)))^2)))) ->  | Y59: =IF(ISBLANK(J59),"",IF($F59<>0,SQRT(($K$6^2-($K$6-((2*$M$6)/(J59*3.14*$K$6)))^2)))) -> 
B60: d | C60: = mittlere Diagonale in mm
B61: b | C61: = Abweichung der Maschine in %
B62: r | C62: = Wiederholpräzision der Härteprüfmaschine in %
U91: =IF(ISBLANK(F91),"",IF($F91<>0,SQRT(($K$6^2-($K$6-((2*$M$6)/(F91*3.14*$K$6)))^2)))) ->  | V91: =IF(ISBLANK(G91),"",IF($F91<>0,SQRT(($K$6^2-($K$6-((2*$M$6)/(G91*3.14*$K$6)))^2)))) ->  | W91: =IF(ISBLANK(H91),"",IF($F91<>0,SQRT(($K$6^2-($K$6-((2*$M$6)/(H91*3.14*$K$6)))^2)))) ->  | X91: =IF(ISBLANK(I91),"",IF($F91<>0,SQRT(($K$6^2-($K$6-((2*$M$6)/(I91*3.14*$K$6)))^2)))) ->  | Y91: =IF(ISBLANK(J91),"",IF($F91<>0,SQRT(($K$6^2-($K$6-((2*$M$6)/(J91*3.14*$K$6)))^2)))) -> 
U123: =IF(ISBLANK(F123),"",IF($F123<>0,SQRT(($K$6^2-($K$6-((2*$M$6)/(F123*3.14*$K$6)))^2)))) ->  | V123: =IF(ISBLANK(G123),"",IF($F123<>0,SQRT(($K$6^2-($K$6-((2*$M$6)/(G123*3.14*$K$6)))^2)))) ->  | W123: =IF(ISBLANK(H123),"",IF($F123<>0,SQRT(($K$6^2-($K$6-((2*$M$6)/(H123*3.14*$K$6)))^2)))) ->  | X123: =IF(ISBLANK(I123),"",IF($F123<>0,SQRT(($K$6^2-($K$6-((2*$M$6)/(I123*3.14*$K$6)))^2)))) ->  | Y123: =IF(ISBLANK(J123),"",IF($F123<>0,SQRT(($K$6^2-($K$6-((2*$M$6)/(J123*3.14*$K$6)))^2)))) -> 
U141: =IF(ISBLANK(H141),"",IF($F141<>0,SQRT(($K$6^2-($K$6-((2*$M$6)/(H141*3.14*$K$6)))^2)))) ->  | V141: =IF(ISBLANK(I141),"",IF($F141<>0,SQRT(($K$6^2-($K$6-((2*$M$6)/(I141*3.14*$K$6)))^2)))) ->  | W141: =IF(ISBLANK(J141),"",IF($F141<>0,SQRT(($K$6^2-($K$6-((2*$M$6)/(J141*3.14*$K$6)))^2)))) -> 
